bitfinex/quotes_ETHUSD_20250411
["timestamp","ask_amount","ask_price","bid_price","bid_amount"]
[1744335222369,0.83,1545.9,1544.6,0.8593]
[1744335222587,55.576,1545.8,1544.7,0.04]
[1744335222774,0.83,1545.9,1545.0,6.47223]
[1744335222996,6.46914,1545.8,1545.0,3.0]
[1744335223199,6.46862,1546.0,1545.1,0.8593]
[1744335223379,0.646862,1546.0,1545.1,3.8593]
[1744335223588,0.83,1546.3,1545.3,3.0]
[1744335223977,0.2086421,1546.4,1545.4,6.47055]
[1744335224107,6.46896,1545.9,1545.1,3.8593]
[1744335224317,56.373,1546.1,1545.1,0.8593]
[1744335224636,10.29872,1545.9,1544.8,0.8593]
[1744335224786,6.47289,1545.0,1544.7,0.04]
[1744335224986,6.4739,1544.7,1544.4,0.8593]
[1744335225237,6.47451,1544.6,1544.0,0.8593]
[1744335225531,6.47584,1544.2,1544.1,0.04]
[1744335225691,6.47558,1544.3,1544.1,0.04]
[1744335226089,7.123138,1544.3,1544.1,0.04]
[1744335226286,0.647558,1544.3,1543.7,0.8593]
[1744335226482,0.83,1544.5,1543.7,0.8593]
[1744335226710,0.83,1544.5,1543.2,12.1328411]
[1744335226711,6.47762,1543.8,1543.4,0.8593]
[1744335227152,6.47762,1543.8,1543.3,2.22]
[1744335227153,6.47866,1543.6,1543.3,2.22]
[1744335227292,6.47916,1543.5,1543.0,0.8593]
[1744335227491,6.47922,1543.4,1543.0,0.8593]
[1744335227697,6.4773,1543.9,1543.1,6.48005]
[1744335227896,6.47798,1543.7,1543.0,0.8593]
[1744335228098,6.47798,1543.7,1543.0,7.34016]
[1744335228296,6.47672,1544.0,1543.2,9.47974]
[1744335228603,6.47864,1543.6,1543.0,0.8593]
[1744335228789,6.47927,1543.4,1543.0,0.8593]
[1744335228986,6.47638,1544.1,1543.4,12.95801]
[1744335229213,7.30377,1544.7,1543.9,6.47685]
[1744335229425,6.47504,1544.4,1543.6,3.8593]
[1744335229723,0.005,1544.2,1543.6,9.5121511]
[1744335230029,0.005,1544.2,1544.0,6.47647]
[1744335230326,0.005,1544.2,1543.6,0.8593]
[1744335230488,0.005,1544.2,1543.8,3.0]
[1744335230690,6.47646,1544.1,1543.6,0.8593]
[1744335230927,6.47626,1544.1,1543.2,0.8593]
[1744335231127,6.47778,1543.8,1543.2,0.8593]
[1744335231332,0.647626,1544.0,1543.3,6.47944]
[1744335231532,6.4786,1543.6,1543.2,0.8593]
[1744335231832,7.30794,1543.7,1542.9,0.8593]
[1744335232031,7.30794,1543.7,1542.6,0.8593]
[1744335232032,56.364,1543.7,1542.6,0.8593]
[1744335232326,62.84215,1543.7,1543.0,6.48059]
[1744335232510,62.84215,1543.7,1542.7,6.48189]
[1744335232511,62.84198,1543.7,1542.7,6.48189]
[1744335232711,6.48021,1543.2,1542.6,0.8593]
[1744335232912,6.48028,1543.2,1542.6,0.8593]
[1744335233094,6.48068,1543.1,1542.6,0.8593]
[1744335233293,6.48012,1543.2,1542.6,0.8593]
[1744335233522,6.48051,1543.1,1542.6,3.8593]
[1744335233718,6.47965,1543.3,1542.6,7.34152]
[1744335233925,0.647965,1543.3,1542.6,0.8593]
[1744335234131,6.48005,1543.2,1542.6,0.8593]
[1744335234432,6.48005,1543.2,1542.6,3.8593]
[1744335234597,6.4805,1543.1,1542.6,3.8593]
[1744335235289,7.30794,1543.7,1542.7,6.48187]
[1744335235496,6.47983,1543.3,1542.7,3.0]
[1744335235733,6.48008,1543.2,1542.7,3.0]
[1744335235917,6.48051,1543.1,1542.6,0.8593]
[1744335236116,6.48088,1543.0,1542.4,6.48336]
[1744335236307,6.48131,1542.9,1542.3,0.8577]
[1744335236505,6.48235,1542.7,1542.3,0.8577]
[1744335236699,1.483851,1543.1,1542.3,0.8577]
[1744335236700,6.48172,1542.8,1542.3,0.8577]
[1744335237227,6.48122,1543.0,1542.3,0.8577]
[1744335237444,6.48146,1542.9,1542.3,7.34136]
[1744335237631,6.48189,1542.8,1542.3,0.8577]
[1744335237834,12.96395,1542.8,1542.3,0.8577]
[1744335238035,6.48189,1542.8,1542.3,0.8577]
[1744335238336,12.96399,1542.8,1542.3,0.8577]
[1744335238642,6.48007,1543.2,1542.6,6.48229]
[1744335238848,6.48007,1543.2,1542.5,6.48298]
[1744335239134,6.48005,1543.2,1542.6,6.48232]
[1744335239293,7.31461,1543.5,1542.6,9.48254]
[1744335239494,0.8358,1543.5,1542.8,6.48166]
[1744335239731,0.8358,1543.5,1542.5,3.0]
[1744335239732,6.48053,1543.1,1542.5,6.48263]
[1744335239915,6.48053,1543.1,1542.4,6.48339]
[1744335239916,7.129113,1543.0,1542.4,6.48305]
[1744335240116,6.48218,1542.7,1542.3,0.8577]
[1744335240303,6.48152,1542.9,1542.3,7.34135]
[1744335240495,6.48152,1542.9,1542.3,0.8577]
[1744335240804,6.48147,1542.9,1542.3,0.8577]
[1744335241004,6.48173,1542.8,1542.3,0.8577]
[1744335241220,6.48064,1543.1,1542.4,6.48318]
[1744335241531,6.47922,1543.4,1542.7,6.48179]
[1744335241735,6.48057,1543.1,1542.5,6.48287]
[1744335241935,6.47964,1543.3,1542.4,6.48327]
[1744335242239,6.4812,1543.0,1542.4,6.48307]
[1744335242815,6.48196,1542.8,1542.3,0.8577]
[1744335243217,62.04266,1543.1,1542.3,0.8577]
[1744335243413,62.04266,1543.1,1542.5,6.48295]
[1744335243944,6.48116,1543.0,1542.4,6.4832]
[1744335244142,12.96456,1542.7,1542.3,0.8577]
[1744335244347,0.648116,1542.9,1542.1,0.1]
[1744335244348,6.48357,1542.4,1542.1,0.1]
[1744335244532,6.48399,1542.3,1542.1,0.1]
[1744335244721,6.48424,1542.2,1542.1,0.1]
[1744335246349,7.03424,1542.2,1542.1,0.1]
[1744335246524,13.81344141,1542.2,1542.1,0.1]
[1744335247111,13.81344141,1542.2,1541.2,13.83437]
[1744335247112,13.81344141,1542.2,1541.2,0.8577]
[1744335247451,6.48676,1541.6,1541.2,0.8577]
[1744335247632,6.48636,1541.7,1541.2,0.8577]
[1744335247823,6.48594,1541.8,1541.2,7.34613]
[1744335248549,6.48652,1541.7,1541.2,0.8577]
[1744335248844,6.48681,1541.6,1541.2,0.8577]
[1744335249436,12.97051,1542.0,1541.4,6.48742]
[1744335249640,6.48638,1541.7,1541.2,7.34597]
[1744335249941,0.55,1542.1,1541.1,3.0]
[1744335250148,6.4862,1541.8,1541.1,9.48862]
[1744335250355,6.48649,1541.7,1541.1,9.48862]
[1744335250563,6.48647,1541.7,1541.2,6.48816]
[1744335250762,6.48738,1541.5,1541.0,3.0]
[1744335250922,12.9749,1541.5,1540.9,6.48966]
[1744335251122,12.97483,1541.5,1540.9,6.48966]
[1744335251760,7.68831,1542.0,1541.0,3.0]
[1744335251916,6.48691,1541.6,1541.1,6.48884]
[1744335252119,6.48735,1541.5,1540.9,9.48954]
[1744335252460,6.48735,1541.5,1540.9,9.48952]
[1744335252660,6.48682,1541.6,1541.0,6.48925]
[1744335252954,6.48682,1541.6,1540.9,9.48952]
[1744335253259,12.97482,1541.5,1540.9,9.48952]
[1744335253457,6.48738,1541.5,1540.9,3.0]
[1744335253659,6.48786,1541.4,1540.8,7.34778]
[1744335253955,6.48786,1541.4,1540.8,7.34761]
[1744335254261,6.48786,1541.4,1540.9,6.48956]
[1744335255020,6.4883,1541.3,1540.8,3.8577]
[1744335255263,6.48817,1541.3,1540.8,0.8577]
[1744335255465,6.49055,1540.7,1540.6,0.4519755]
[1744335255619,6.48802,1541.3,1540.6,0.4519755]
[1744335255620,6.48955,1541.0,1540.6,0.4519755]
[1744335255826,6.48986,1540.9,1540.6,0.4519755]
[1744335256025,12.97983,1540.9,1540.6,0.4519755]
[1744335256360,6.49014,1540.8,1540.6,0.4519755]
[1744335257534,6.49055,1540.7,1540.6,0.4519755]
[1744335258530,6.48968,1541.0,1540.6,0.4519755]
[1744335258864,6.4899,1540.9,1540.6,0.4519755]
[1744335259156,6.49032,1540.8,1540.6,0.4519755]
[1744335259357,6.49055,1540.7,1540.6,0.4519755]
[1744335260069,1.2031,1541.4,1540.6,0.4519755]
[1744335260228,6.48953,1541.0,1540.6,0.4519755]
[1744335260550,6.48845,1541.2,1540.6,0.4519755]
[1744335260746,6.48953,1541.0,1540.6,0.4519755]
[1744335260965,6.48929,1541.0,1540.6,0.4519755]
[1744335261140,6.49055,1540.7,1540.6,0.4519755]
[1744335262571,6.49055,1540.7,1540.1,0.1]
[1744335262572,6.49266,1540.2,1540.1,0.1]
[1744335263241,5.94266,1540.2,1540.1,0.1]
[1744335265123,7.14576,1540.2,1540.1,0.1]
[1744335265795,5.94266,1540.2,1540.1,0.1]
[1744335267092,6.49183,1540.4,1540.1,0.1]
[1744335267299,6.49266,1540.2,1540.1,0.1]
[1744335268308,8.440409,1540.2,1540.1,0.1]
[1744335268676,6.49477,1539.7,1539.6,0.55]
[1744335269201,6.49421,1539.9,1539.6,0.55]
[1744335269986,6.49477,1539.7,1539.6,0.55]
[1744335274001,6.49547,1539.6,1539.3,0.3188662]
[1744335274201,6.49603,1539.4,1539.3,0.3188662]
[1744335274899,6.49579,1539.5,1539.3,0.3188662]
[1744335275106,7.04473,1539.8,1539.3,0.3188662]
[1744335275107,1.2565,1539.9,1539.3,0.3188662]
[1744335275274,6.49308,1540.1,1539.4,1.13749]
[1744335275460,6.49325,1540.1,1539.4,1.13749]
[1744335275660,6.49414,1539.9,1539.4,1.13749]
[1744335275890,6.4927,1540.2,1539.4,1.13749]
[1744335276091,6.49561,1539.5,1539.3,0.3188662]
[1744335276307,6.49603,1539.4,1539.3,0.3188662]
[1744335277201,6.49523,1539.6,1539.3,0.3188662]
[1744335277501,6.49603,1539.4,1539.3,0.3188662]
[1744335277867,8.30253,1539.4,1539.3,0.3188662]
[1744335278073,6.49876,1538.8,1538.3,6.83912623]
[1744335278268,6.49876,1538.8,1538.4,1.203]
[1744335278700,6.49916,1538.7,1538.4,1.203]
[1744335279006,6.4974,1539.1,1538.1,6.6015]
[1744335279007,6.49959,1538.6,1538.1,1.303]
[1744335279211,1.2565,1538.8,1538.1,1.303]
[1744335279374,6.5011,1538.2,1538.1,0.1]
[1744335280407,6.50321,1537.7,1537.6,0.4469412]
[1744335280575,7.0511,1538.2,1537.6,0.4469412]
[1744335280775,6.50312,1537.8,1537.6,0.4469412]
[1744335281004,6.50321,1537.7,1537.6,0.4469412]
[1744335281209,6.50312,1537.8,1537.6,0.4469412]
[1744335281707,6.50321,1537.7,1537.6,0.4469412]
[1744335282475,6.50312,1537.8,1537.6,0.4469412]
[1744335282678,6.50132,1538.2,1537.7,1.1546]
[1744335282988,6.5017,1538.1,1537.7,1.1546]
[1744335283363,6.50114,1538.2,1537.7,1.1546]
[1744335283794,6.50114,1538.2,1537.7,7.65778]
[1744335284004,6.50161,1538.1,1537.7,1.1546]
[1744335284323,56.963,1538.7,1537.7,1.1546]
[1744335284604,6.50164,1538.1,1537.7,1.1546]
[1744335284769,6.5011,1538.2,1537.7,1.1546]
[1744335285102,7.05029,1538.4,1537.7,1.1546]
[1744335285306,6.50153,1538.1,1537.7,1.1546]
[1744335286170,6.50515,1537.3,1537.1,1.1546]
[1744335286368,6.50218,1538.0,1537.4,6.50429]
[1744335286674,6.50282,1537.8,1537.5,1.1546]
[1744335287376,6.50237,1537.9,1537.1,6.50573]
[1744335287377,6.50364,1537.6,1537.1,6.50573]
[1744335287702,6.50364,1537.6,1537.2,1.1546]
[1744335287915,0.55,1537.7,1536.8,10.07922666]
[1744335288119,6.50407,1537.5,1537.0,6.506]
[1744335288524,6.50321,1537.7,1536.9,1.1546]
[1744335288685,6.50388,1537.6,1536.9,10.66107]
[1744335289025,6.50431,1537.5,1536.9,17.16745]
[1744335289181,6.50476,1537.4,1536.9,7.66098]
[1744335289381,6.50476,1537.4,1536.9,1.1546]
[1744335289718,6.50476,1537.4,1536.9,10.66098]
[1744335289921,0.55,1537.7,1536.9,1.1546]
[1744335290081,0.705279,1537.7,1536.9,1.1546]
[1744335290281,6.50526,1537.3,1536.9,1.1546]
[1744335290484,6.50523,1537.3,1536.9,1.1546]
[1744335290779,6.50453,1537.4,1536.9,1.1546]
[1744335290985,6.50428,1537.5,1537.0,6.50599]
[1744335291521,63.48852,1537.9,1536.9,4.1546]
[1744335291683,6.50441,1537.5,1536.9,7.66105]
[1744335291883,6.5044,1537.5,1536.9,7.66104]
[1744335292085,6.50509,1537.3,1536.9,1.1546]
[1744335292390,6.50573,1537.2,1536.3,3.57221666]
[1744335292733,6.50731,1536.8,1536.3,6.50909]
[1744335293203,1.1868,1537.5,1536.5,6.50824]
[1744335293394,6.50621,1537.0,1536.5,13.01629]
[1744335293714,6.50621,1537.0,1536.5,13.01618]
[1744335294013,1.1868,1537.5,1536.2,0.47955872]
[1744335294014,13.0139,1536.9,1536.2,0.47955872]
[1744335294193,13.0139,1536.9,1536.3,6.50884]
[1744335294194,6.50709,1536.8,1536.3,6.50884]
[1744335294395,6.50761,1536.7,1536.0,3.57221666]
[1744335294606,6.50709,1536.8,1536.2,6.50923]
[1744335294607,13.01444,1536.8,1536.2,6.50923]
[1744335294796,6.50743,1536.8,1536.2,6.50923]
[1744335294995,6.5076,1536.7,1536.1,7.09307451]
[1744335295191,6.5076,1536.7,1536.1,7.09291451]
[1744335295414,6.50792,1536.6,1536.2,1.1932]
[1744335295622,6.50823,1536.6,1536.2,1.1932]
[1744335295817,6.50727,1536.8,1536.2,1.1932]
[1744335295990,6.50727,1536.8,1536.3,6.50899]
[1744335296519,13.01278,1537.0,1536.4,6.50835]
[1744335296724,13.01278,1537.0,1536.4,13.01691]
[1744335296921,13.01384,1536.9,1536.4,6.50835]
[1744335297098,6.50619,1537.0,1536.5,6.50819]
[1744335297285,13.01269,1537.0,1536.5,6.50819]
[1744335297482,6.50663,1536.9,1536.4,6.50835]
[1744335297822,6.50663,1536.9,1536.4,13.01689]
[1744335298319,6.50533,1537.2,1536.7,7.72764]
[1744335298320,6.50562,1537.2,1536.7,7.72764]
[1744335298484,13.0102,1537.3,1536.8,6.50701]
[1744335299017,6.50534,1537.2,1536.7,14.23472]
[1744335299385,6.50493,1537.3,1536.7,1.2202]
[1744335299386,6.50651,1537.0,1536.7,1.2202]
[1744335299588,6.50448,1537.4,1536.7,1.2202]
[1744335299784,6.50669,1536.9,1536.7,1.2202]
[1744335299989,13.01267,1537.0,1536.7,1.2202]
[1744335300732,13.01285,1537.0,1536.7,1.2202]
[1744335300928,13.01185,1537.1,1536.7,1.2202]
[1744335301089,6.50584,1537.1,1536.7,1.2202]
[1744335301290,6.50631,1537.0,1536.7,1.2202]
[1744335301491,6.50807,1536.6,1536.1,1.2202]
[1744335301821,1.301213,1537.0,1536.1,1.2202]
[1744335301997,6.50609,1537.1,1536.3,1.2202]
[1744335302317,6.50492,1537.3,1536.8,7.72707]
[1744335302519,6.50562,1537.2,1536.8,1.2202]
[1744335302717,6.50562,1537.2,1536.8,7.72719]
[1744335302938,6.50494,1537.3,1536.8,7.72707]
[1744335303142,6.50494,1537.3,1536.9,1.9]
[1744335303307,6.50497,1537.3,1536.9,1.9]
[1744335303504,6.50426,1537.5,1536.9,8.40621]
[1744335303829,6.50341,1537.7,1537.2,7.72551]
[1744335304033,6.50367,1537.6,1537.2,7.72551]
[1744335304350,6.5048,1537.4,1537.2,1.2202]
[1744335304516,6.50364,1537.6,1536.9,1.2202]
[1744335304717,0.55,1537.8,1536.9,1.2202]
[1744335304928,6.50511,1537.3,1536.9,1.2202]
[1744335305133,6.50545,1537.2,1536.9,1.2202]
[1744335305329,6.50618,1537.0,1536.9,1.2202]
[1744335305645,6.50579,1537.1,1536.6,1.2202]
[1744335305846,6.50745,1536.7,1536.6,1.2202]
[1744335306145,1.301112,1537.1,1536.2,7.72956]
[1744335306310,6.50637,1537.0,1536.3,6.86124061]
[1744335306511,13.01285,1537.0,1536.5,6.5081]
[1744335306745,6.50728,1536.8,1536.4,0.58659231]
[1744335306946,6.50803,1536.6,1536.4,0.58659231]
[1744335307247,6.50829,1536.5,1536.4,0.58659231]
[1744335307753,6.50829,1536.5,1536.0,14.24062]
[1744335307923,6.50829,1536.5,1536.1,0.94114641]
[1744335308110,13.01601,1536.6,1536.1,7.45111641]
[1744335308310,6.50837,1536.5,1536.2,1.17710366]
[1744335308724,6.50837,1536.5,1536.2,0.58889464]
[1744335308943,6.50832,1536.5,1536.1,0.58889464]
[1744335309164,6.50814,1536.6,1536.1,7.09868464]
[1744335309647,6.5085,1536.5,1536.2,0.35356169]
[1744335309818,6.5085,1536.5,1536.3,0.58889464]
[1744335310247,6.50791,1536.6,1536.3,0.58889464]
[1744335310473,6.5084,1536.5,1536.3,0.58889464]
[1744335310655,13.01695,1536.5,1536.3,0.58889464]
[1744335310826,6.50872,1536.4,1536.3,0.58889464]
[1744335311028,6.50956,1536.2,1536.1,0.58889464]
[1744335311934,6.50933,1536.3,1536.1,0.58889464]
[1744335312149,7.810385,1536.5,1535.9,0.58889464]
[1744335312372,6.50963,1536.2,1535.9,0.58889464]
[1744335312523,13.01955,1536.2,1535.9,0.58889464]
[1744335312728,6.51025,1536.1,1535.9,0.58889464]
[1744335312965,6.51041,1536.0,1535.9,0.58889464]
[1744335313130,6.51105,1535.9,1535.5,0.58889464]
[1744335313457,6.51072,1536.0,1535.6,0.07]
[1744335313660,6.51149,1535.8,1535.6,0.65875703]
[1744335313839,13.02304,1535.8,1535.6,0.65875703]
[1744335314044,6.51168,1535.7,1535.5,0.58889464]
[1744335314248,6.51211,1535.6,1535.5,0.58889464]
[1744335314557,6.51253,1535.5,1535.4,0.0468684]
[1744335315164,6.51485,1535.0,1534.5,7.78215596]
[1744335315362,6.51536,1534.9,1534.6,0.26]
[1744335315566,6.51635,1534.6,1534.5,0.04522596]
[1744335316242,6.51512,1534.9,1534.5,0.04522596]
[1744335316443,21.70482,1535.0,1534.5,6.56191596]
[1744335316646,28.21979,1535.0,1534.5,0.04522596]
[1744335316844,21.70482,1535.0,1534.5,0.04522596]
[1744335317045,6.51374,1535.3,1534.7,6.51583]
[1744335317230,4.22328866,1536.0,1534.5,0.04522596]
[1744335317231,6.51259,1535.5,1534.8,1.2572]
[1744335317434,6.51296,1535.4,1534.9,13.02999]
[1744335317733,6.51211,1535.6,1534.8,10.77257]
[1744335317947,6.51211,1535.6,1534.8,4.2572]
[1744335318152,13.02456,1535.6,1535.0,6.51428]
[1744335318349,13.02456,1535.6,1534.8,4.2572]
[1744335318350,6.51211,1535.6,1534.8,7.82941666]
[1744335318679,6.51088,1535.9,1535.3,6.51318]
[1744335318836,13.02201,1535.9,1535.4,1.2572]
[1744335319034,13.02104,1536.0,1535.4,1.2572]
[1744335319251,13.02104,1536.0,1535.5,6.51246]
[1744335319680,6.5119,1535.7,1535.4,1.2572]
[1744335319976,6.51103,1535.9,1535.4,1.2572]
[1744335320142,6.51004,1536.1,1535.5,6.51235]
[1744335320344,6.51063,1536.0,1535.5,13.02469]
[1744335320572,27.83345,1536.2,1535.7,6.51166]
[1744335320770,6.51004,1536.1,1535.5,6.51253]
[1744335320977,6.51145,1535.8,1535.4,4.2572]
[1744335321153,6.51224,1535.6,1535.4,1.2572]
[1744335321472,6.51095,1535.9,1535.4,1.2572]
[1744335321637,6.51168,1535.7,1535.1,7.7712]
[1744335321841,6.5138,1535.2,1535.1,1.2572]
[1744335322040,6.5138,1535.2,1534.8,1.2572]
[1744335322277,6.51428,1535.1,1534.8,1.2572]
[1744335322460,6.51355,1535.3,1534.8,7.77254]
[1744335322778,21.32727,1535.6,1535.1,6.51405]
[1744335322937,6.51227,1535.6,1535.0,6.51464]
[1744335323137,6.51268,1535.5,1535.0,13.02913]
[1744335323338,6.51268,1535.5,1535.0,6.51449]
[1744335323645,13.02379,1535.7,1535.2,6.51362]
[1744335323854,6.51257,1535.5,1535.1,6.51417]
[1744335324077,6.51212,1535.6,1535.0,6.51448]
[1744335324279,7.78178,1535.8,1535.0,6.51465]
[1744335324575,22.59565,1536.1,1535.4,1.2572]
[1744335324762,14.815,1536.1,1535.5,6.51211]
[1744335324943,6.51072,1536.0,1535.5,6.51211]
[1744335325282,14.815,1536.1,1535.7,6.51129]
[1744335325451,6.50802,1536.6,1536.1,6.50973]
[1744335325848,6.50848,1536.5,1535.9,1.2572]
[1744335326195,6.5074,1536.8,1536.2,6.50956]
[1744335326342,6.50647,1537.0,1536.4,6.5085]
[1744335326548,21.32181,1537.1,1536.6,6.50778]
[1744335326744,6.50623,1537.0,1536.5,1.2572]
[1744335327047,6.50708,1536.8,1536.5,1.2572]
[1744335327885,6.50621,1537.0,1536.5,1.2572]
[1744335328113,6.50526,1537.3,1536.5,4.2572]
[1744335328284,14.813,1537.6,1537.0,6.50601]
[1744335328285,6.50409,1537.5,1537.0,6.50601]
[1744335328488,6.50448,1537.4,1537.1,1.26]
[1744335329276,6.50212,1538.0,1537.4,6.50425]
[1744335329477,14.28375,1538.3,1537.4,1.26]
[1744335329675,6.50242,1537.9,1537.4,7.76445]
[1744335330001,6.50242,1537.9,1537.4,1.26]
[1744335330162,6.50262,1537.9,1537.4,1.26]
[1744335330501,0.650262,1537.9,1537.4,1.26]
[1744335330699,6.50153,1538.1,1537.4,1.26]
[1744335330911,6.50305,1537.8,1537.4,1.26]
[1744335331673,6.50239,1537.9,1537.4,7.7644]
[1744335331999,6.50155,1538.1,1537.5,6.83636433]
[1744335332306,6.50129,1538.2,1537.7,6.50318]
[1744335332608,0.1,1538.4,1538.0,6.50195]
[1744335332762,0.1,1538.4,1538.1,6.50131]
[1744335333094,0.1,1538.4,1538.2,0.24682942]
[1744335333608,0.1,1538.4,1538.3,0.24682942]
[1744335334100,0.1,1538.4,1538.1,6.5015]
[1744335334305,0.1,1538.4,1538.3,1.51517616]
[1744335335374,0.1,1538.4,1538.3,8.01585616]
[1744335335699,0.1,1538.4,1538.3,11.01585616]
[1744335336076,0.1,1538.4,1538.3,1.51517616]
[1744335336720,0.1,1538.4,1538.3,11.49255272]
[1744335338308,0.1,1538.4,1538.3,13.39255272]
[1744335338604,0.1,1538.4,1538.3,13.56255272]
[1744335338973,0.1,1538.4,1538.3,13.08585616]
[1744335339473,0.1,1538.4,1538.3,13.58405233]
[1744335340534,0.1,1538.4,1538.3,6.58517616]
[1744335340737,0.1,1538.4,1538.3,16.65807282]
[1744335341293,0.1,1538.4,1538.3,17.15071127]
[1744335341534,0.1,1538.4,1538.3,10.65003127]
[1744335341745,0.1,1538.4,1538.3,3.58517616]
[1744335342036,6.60026,1538.4,1538.3,2.31377616]
[1744335342245,7.910296,1538.4,1538.3,0.24377616]
[1744335342411,9.169696,1538.4,1538.3,0.24377616]
[1744335342607,0.1,1538.4,1537.7,6.50321]
[1744335342808,6.50139,1538.2,1537.7,13.00623]
[1744335343011,0.1,1538.4,1537.8,0.21233386]
[1744335343333,0.1,1538.4,1538.0,6.50192]
[1744335343506,0.1,1538.4,1538.1,7.97369386]
[1744335343704,0.1,1538.4,1538.1,7.97361386]
[1744335343896,0.1,1538.4,1538.1,1.47233386]
[1744335344260,6.50109,1538.3,1538.1,1.47233386]
[1744335344536,6.5011,1538.2,1538.1,0.21233386]
[1744335344855,0.1,1538.4,1537.8,4.26]
[1744335345129,6.50068,1538.3,1537.8,4.26]
[1744335345431,13.00357,1538.1,1537.9,0.21233386]
[1744335345733,6.50123,1538.2,1537.9,3.0]
[1744335345935,6.50123,1538.2,1538.0,0.21233386]
[1744335346130,6.50167,1538.1,1537.8,1.26]
[1744335346339,6.50123,1538.2,1537.9,0.21233386]
[1744335346636,6.50123,1538.2,1537.8,1.26]
[1744335346822,6.50075,1538.3,1538.0,0.21233386]
[1744335347001,6.50132,1538.2,1537.8,14.26518]
[1744335347201,6.60026,1538.4,1538.1,0.21233386]
[1744335347519,15.3094,1538.3,1536.9,1.26]
[1744335347726,6.50195,1538.0,1536.9,1.26]
[1744335347932,0.55,1538.2,1536.5,6.50804]
[1744335347933,6.5059,1537.1,1536.6,1.26]
[1744335348141,6.50745,1536.7,1536.6,1.26]
[1744335348338,6.50507,1537.3,1536.6,1.26]
[1744335348339,6.50628,1537.0,1536.6,1.26]
[1744335348507,6.50628,1537.0,1536.7,1.9]
[1744335348711,6.50411,1537.5,1536.7,1.9]
[1744335348712,6.50538,1537.2,1536.7,1.9]
[1744335348908,6.50537,1537.2,1536.7,8.40724]
[1744335349143,6.50497,1537.3,1536.7,8.4072]
[1744335349351,6.50702,1536.8,1536.2,6.50951]
[1744335349512,6.50768,1536.7,1536.1,21.66093728]
[1744335349713,6.50768,1536.7,1536.1,15.15092728]
[1744335349920,6.50845,1536.5,1536.1,8.64119728]
[1744335350117,6.50936,1536.3,1536.1,8.64119728]
[1744335350331,6.50839,1536.5,1536.1,7.38119728]
[1744335350623,6.50723,1536.8,1536.3,7.76911]
[1744335351045,15.3114,1537.0,1536.3,1.26]
[1744335351355,6.50839,1536.5,1536.1,7.38119728]
[1744335351557,6.50839,1536.5,1536.1,3.0]
[1744335352752,6.50821,1536.6,1536.1,6.50962]
[1744335352963,6.50665,1536.9,1536.4,7.79442]
[1744335353131,6.50731,1536.8,1536.2,3.0]
[1744335353462,6.50663,1536.9,1536.2,3.0]
[1744335353756,0.55,1536.9,1536.0,7.79631]
[1744335353956,6.5089,1536.4,1536.1,3.0]
[1744335354449,6.50834,1536.5,1536.1,3.0]
[1744335354652,6.50834,1536.5,1536.1,9.50996]
[1744335354825,6.50807,1536.6,1536.1,16.01969]
[1744335355015,1.2594,1537.0,1536.1,10.08217666]
[1744335355213,6.50601,1537.1,1536.7,1.2859]
[1744335355659,6.50641,1537.0,1536.7,1.2859]
[1744335355858,6.50567,1537.2,1536.7,1.2859]
[1744335356031,6.50494,1537.3,1536.8,6.50684]
[1744335356432,7.73909,1537.4,1536.7,7.79329]
[1744335356433,6.50588,1537.1,1536.7,7.79319]
[1744335356830,6.50539,1537.2,1536.5,3.0]
[1744335357064,6.50709,1536.8,1536.4,1.3165]
[1744335357216,6.50745,1536.7,1535.9,1.3165]
[1744335357422,6.50959,1536.2,1535.9,1.3165]
[1744335357730,6.50959,1536.2,1535.4,6.51267]
[1744335357731,6.50999,1536.1,1536.0,0.14434576]
[1744335357935,6.51079,1536.0,1535.5,7.82896]
[1744335358131,6.51143,1535.8,1535.6,0.14434576]
[1744335358365,6.51088,1535.9,1535.6,0.14434576]
[1744335359019,6.51002,1536.1,1535.6,0.14434576]
[1744335359216,6.51141,1535.8,1535.6,0.14434576]
[1744335359822,6.51141,1535.8,1535.0,8.062164]
[1744335359823,6.51168,1535.7,1535.0,8.062164]
[1744335360023,2.595229,1535.8,1535.7,0.14434576]
[1744335360222,6.51259,1535.5,1535.0,8.062004]
[1744335360521,14.059,1536.1,1535.1,3.71656242]
[1744335360749,6.51044,1536.0,1535.5,7.82869]
[1744335361145,13.02213,1535.9,1535.6,0.14434576]
[1744335361348,6.51168,1535.7,1535.6,0.14434576]
[1744335361527,7.80468,1535.7,1535.1,1.3165]
[1744335361733,6.51333,1535.4,1535.2,0.15122401]
[1744335361936,21.61074163,1536.1,1534.8,4.88871666]
[1744335361937,0.55,1536.0,1534.8,5.3783968]
[1744335362144,6.51317,1535.4,1535.1,0.15122401]
[1744335362339,1.293,1535.7,1535.1,0.15122401]
[1744335362555,13.0223,1535.9,1535.4,6.51295]
[1744335362862,6.51173,1535.7,1535.3,7.82987]
[1744335363016,6.51211,1535.6,1535.5,0.16199791]
[1744335363218,6.51211,1535.6,1535.4,0.16299132]
[1744335363423,6.51211,1535.6,1535.1,6.51402]
[1744335363424,6.51323,1535.4,1535.0,6.745714]
[1744335363635,6.51323,1535.4,1535.0,13.260124]
[1744335364038,6.51264,1535.5,1535.0,13.260124]
[1744335364274,6.51264,1535.5,1535.1,6.51421]
[1744335364457,6.51251,1535.6,1535.1,6.51421]
[1744335364670,6.51169,1535.7,1535.2,6.51365]